bitfinex-derivatives/quotes_SOLF0:USTF0_20250919
["timestamp","ask_amount","ask_price","bid_price","bid_amount"]
[1758265627147,8.10349121,243.51,243.43,8.01349121]
[1758265627857,8.10349121,243.51,243.43,6.64]
[1758265628047,1.37349121,243.49,243.39,39.04473067]
[1758265628255,1.37349121,243.49,243.4,1.37349121]
[1758265628446,6.73,243.5,243.4,1.37349121]
[1758265628644,1.37349121,243.48,243.4,1.37349121]
[1758265628939,1.37349121,243.48,243.39,26.64]
[1758265629848,6.65,243.47,243.39,26.64]
[1758265630151,1.37349121,243.46,243.39,26.64]
[1758265632448,1.37349121,243.46,243.39,30.06540559]
[1758265632852,6.65,243.47,243.39,31.4388968]
[1758265634047,6.65,243.47,243.39,30.06540559]
[1758265634349,6.65,243.47,243.4,3.42540559]
[1758265635152,6.65,243.47,243.39,31.4388968]
[1758265635351,6.65,243.47,243.4,3.42540559]
[1758265636151,6.65,243.47,243.39,31.4388968]
[1758265636352,6.65,243.47,243.4,3.42540559]
[1758265636747,6.65,243.47,243.39,31.4388968]
[1758265637748,5.69,243.46,243.39,30.06540559]
[1758265638452,5.69,243.46,243.4,3.42540559]
[1758265641260,12.42,243.46,243.41,10.06540559]
[1758265641655,5.69,243.46,243.41,3.42540559]
[1758265641853,5.69,243.46,243.4,3.42540559]
[1758265642054,5.69,243.46,243.39,20.0]
[1758265642055,6.73,243.45,243.39,23.42540559]
[1758265642261,7.83778574,243.46,243.41,3.42540559]
[1758265642460,6.73,243.45,243.41,3.42540559]
[1758265642654,7.83778574,243.46,243.41,3.42540559]
[1758265642858,6.73,243.45,243.41,3.42540559]
[1758265643059,7.83778574,243.46,243.41,3.42540559]
[1758265643262,6.73,243.45,243.41,3.42540559]
[1758265643761,7.83778574,243.46,243.41,3.42540559]
[1758265644458,6.73,243.45,243.41,3.42540559]
[1758265645159,7.83778574,243.46,243.4,3.42540559]
[1758265645657,14.56778574,243.46,243.4,3.42540559]
[1758265645864,6.73,243.45,243.41,3.42540559]
[1758265646060,6.73,243.45,243.41,10.06540559]
[1758265646460,6.73,243.45,243.42,3.42540559]
[1758265646757,6.73,243.45,243.41,10.06540559]
[1758265647161,5.69,243.46,243.41,3.42540559]
[1758265647560,6.73,243.45,243.41,10.06540559]
[1758265647761,5.69,243.46,243.41,3.42540559]
[1758265647962,6.73,243.45,243.41,3.42540559]
[1758265648162,6.66,243.45,243.41,3.42540559]
[1758265648355,7.83778574,243.46,243.41,3.42540559]
[1758265648662,6.66,243.45,243.41,3.42540559]
[1758265649062,7.83778574,243.46,243.41,3.42540559]
[1758265649266,6.66,243.45,243.4,3.42540559]
[1758265649763,7.83778574,243.46,243.4,3.42540559]
[1758265650162,6.66,243.45,243.39,23.42540559]
[1758265650956,2.14778574,243.43,243.39,20.0]
[1758265651155,6.66,243.42,243.39,20.0]
[1758265651663,2.14778574,243.43,243.39,20.0]
[1758265652168,6.66,243.41,243.39,20.0]
[1758265652361,2.14778574,243.43,243.39,20.0]
[1758265652758,6.66,243.42,243.39,20.0]
[1758265652968,2.14778574,243.43,243.39,20.0]
[1758265653264,2.14778574,243.43,243.4,3.70990877]
[1758265653565,6.66,243.42,243.41,3.70990877]
[1758265654266,8.80778574,243.43,243.41,3.70990877]
[1758265654564,8.80778574,243.43,243.42,3.70990877]
[1758265656760,9.22778574,243.43,243.42,3.70990877]
[1758265657167,2.56778574,243.43,243.39,20.0]
[1758265657368,2.14778574,243.45,243.39,20.0]
[1758265657369,8.80778574,243.4,243.39,20.0]
[1758265658573,2.14778574,243.4,243.39,20.0]
[1758265659268,2.14778574,243.43,243.39,26.68]
[1758265659470,8.80778574,243.43,243.39,26.68]
[1758265660773,6.66,243.43,243.39,26.68]
[1758265662572,6.73,243.42,243.4,6.68]
[1758265663166,6.73,243.42,243.41,3.60503554]
[1758265663972,13.39,243.42,243.41,3.60503554]
[1758265664771,6.73,243.42,243.41,3.60503554]
[1758265665778,13.39,243.42,243.41,3.60503554]
[1758265666671,6.73,243.42,243.41,3.60503554]
[1758265666877,6.73,243.42,243.41,3.60655833]
[1758265667469,6.73,243.42,243.41,10.28655833]
[1758265668272,6.73,243.42,243.41,3.60655833]
[1758265668869,6.73,243.42,243.41,10.28655833]
[1758265671477,6.73,243.42,243.41,13.71196392]
[1758265671874,6.73,243.42,243.41,10.28655833]
[1758265677983,6.73,243.42,243.41,14.8641825]
[1758265678182,3.64930043,243.42,243.41,14.8641825]
[1758265678382,6.65,243.47,243.41,14.8641825]
[1758265678583,6.65,243.47,243.45,3.4544331]
[1758265678778,6.65,243.47,243.46,3.60655833]
[1758265678979,15.29778574,243.47,243.46,3.60655833]
[1758265679180,6.5,243.46,243.42,3.4544331]
[1758265679387,8.79778574,243.47,243.42,3.4544331]
[1758265679590,6.5,243.45,243.42,3.4544331]
[1758265679784,6.5,243.46,243.42,3.4544331]
[1758265679981,8.79778574,243.47,243.41,3.4544331]
[1758265680187,6.5,243.46,243.42,3.73703924]
[1758265680388,6.5,243.45,243.43,3.73703924]
[1758265680589,6.5,243.46,243.44,3.73703924]
[1758265680790,6.5,243.46,243.45,3.73703924]
[1758265680987,6.5,243.46,243.36,6.81]
[1758265680988,6.5,243.44,243.33,4.60781874]
[1758265681197,6.5,243.36,243.25,6.81]
[1758265682593,6.5,243.36,243.22,12.10520166]
[1758265682594,2.14778574,243.31,243.21,6.81]
[1758265682798,6.5,243.3,243.21,6.81]
[1758265687999,6.5,243.3,243.23,0.0262957]
[1758265689999,6.06,243.29,243.23,0.0262957]
[1758265691795,6.5,243.28,243.23,0.0262957]
[1758265691999,6.06,243.29,243.23,0.0262957]
[1758265692196,6.5,243.28,243.23,0.0262957]
[1758265693399,6.06,243.29,243.23,0.0262957]
[1758265693898,6.5,243.28,243.23,0.0262957]
[1758265694094,6.5,243.27,243.23,0.0262957]
[1758265694296,2.14778574,243.28,243.23,0.0262957]
[1758265695000,6.5,243.27,243.23,0.0262957]
[1758265695303,6.5,243.27,243.23,6.8362957]
[1758265695496,6.5,243.27,243.24,6.81]
[1758265695997,6.5,243.28,243.24,6.81]
[1758265696395,6.06,243.29,243.24,6.81]
[1758265697100,6.06,243.29,243.23,0.0262957]
[1758265697295,6.06,243.29,243.24,6.81]
[1758265697498,6.06,243.29,243.23,0.0262957]
[1758265697898,6.06,243.29,243.25,6.81]
[1758265698095,6.06,243.29,243.24,6.81]
[1758265698290,6.06,243.29,243.23,1.40244476]
[1758265698498,6.06,243.29,243.24,6.81]
[1758265698700,6.06,243.29,243.23,1.40244476]
[1758265698900,6.06,243.29,243.25,1.37614906]
[1758265699300,6.06,243.29,243.26,6.81]
[1758265699504,6.06,243.29,243.23,0.0262957]
[1758265699505,12.56,243.29,243.23,0.0262957]
[1758265699799,12.56,243.29,243.23,1.40244476]
[1758265700194,12.56,243.29,243.23,0.0262957]
[1758265708309,12.56,243.29,243.23,1.40244476]
[1758265710005,13.93614906,243.29,243.23,0.0262957]
[1758265710915,12.56,243.29,243.23,0.0262957]
[1758265712513,13.93614906,243.29,243.23,0.0262957]
[1758265713313,1.37614906,243.27,243.23,0.0262957]
[1758265713515,6.54,243.26,243.23,0.0262957]
[1758265714312,1.37614906,243.24,243.23,0.0062957]
[1758265714609,7.91614906,243.24,243.23,0.0062957]
[1758265716216,6.56759017,243.26,243.23,0.0062957]
[1758265716819,6.56759017,243.26,243.23,6.8262957]
[1758265717220,0.02759017,243.26,243.23,0.0062957]
[1758265718618,0.02759017,243.26,243.23,6.8262957]
[1758265718813,0.02759017,243.26,243.23,0.0062957]
[1758265719217,1.40373923,243.26,243.23,0.0062957]
[1758265720016,0.02759017,243.26,243.23,0.0062957]
[1758265722522,0.02759017,243.26,243.23,8.7121141]
[1758265722724,0.02759017,243.26,243.25,6.82]
[1758265723225,0.02759017,243.26,243.25,11.4076184]
[1758265724227,0.02759017,243.26,243.25,6.82]
[1758265725424,0.02759017,243.26,243.23,6.87728953]
[1758265725620,1.40373923,243.26,243.23,11.43864407]
[1758265725920,1.40373923,243.26,243.23,0.0062957]
[1758265725921,0.02759017,243.26,243.23,0.0062957]
[1758265726125,0.02759017,243.26,243.23,4.61864407]
[1758265726517,0.02759017,243.26,243.24,6.82]
[1758265726723,0.02759017,243.26,243.23,0.0062957]
[1758265727027,0.02759017,243.26,243.23,6.8262957]
[1758265727429,0.02759017,243.26,243.23,11.43864407]
[1758265727623,0.02759017,243.26,243.23,4.61864407]
[1758265727822,0.02759017,243.26,243.24,6.82]
[1758265728328,0.02759017,243.26,243.23,4.61864407]
[1758265728529,0.02759017,243.26,243.24,6.82]
[1758265728931,0.02759017,243.26,243.23,4.61864407]
[1758265729130,0.02759017,243.26,243.24,6.82]
[1758265731033,0.02759017,243.26,243.23,4.61864407]
[1758265731233,0.02759017,243.26,243.24,6.82]
[1758265731833,0.02759017,243.26,243.23,4.61864407]
[1758265732029,0.02759017,243.26,243.24,6.82]
[1758265732733,0.02759017,243.26,243.25,6.82]
[1758265734338,0.02759017,243.26,243.25,4.61230761]
[1758265734537,0.02759017,243.26,243.24,4.61230761]
[1758265734737,6.56759017,243.26,243.24,4.61230761]
[1758265734939,6.56759017,243.26,243.23,0.0062957]
[1758265736440,0.02759017,243.26,243.23,0.0062957]
[1758265736741,0.02759017,243.26,243.24,7.16]
[1758265737239,0.02759017,243.26,243.23,4.61860331]
[1758265737440,0.02759017,243.26,243.24,4.61230761]
[1758265737739,0.02759017,243.26,243.25,11.77230761]
[1758265738833,0.02759017,243.26,243.25,7.16]
[1758265744234,0.02759017,243.26,243.23,13.96728953]
[1758265744438,0.02759017,243.26,243.25,4.61277869]
[1758265744635,0.02759017,243.26,243.25,11.70277869]
[1758265744840,0.02759017,243.26,243.25,7.09]
[1758265748341,0.02759017,243.26,243.25,13.96099383]
[1758265749045,0.02759017,243.26,243.25,8.46614906]
[1758265749542,0.02759017,243.26,243.25,7.09]
[1758265749942,0.02759017,243.26,243.24,7.09]
[1758265750143,0.02759017,243.26,243.23,8.25343859]
[1758265750444,0.02759017,243.26,243.24,7.09]
[1758265750944,0.02759017,243.26,243.23,8.25343859]
[1758265751547,0.02759017,243.26,243.24,7.09]
[1758265752146,0.02759017,243.26,243.23,8.25343859]
[1758265752746,0.02759017,243.26,243.25,1.37614906]
[1758265752945,0.02759017,243.26,243.25,8.46614906]
[1758265753949,0.02759017,243.26,243.25,15.33714289]
[1758265754148,0.02759017,243.26,243.25,13.96099383]
[1758265754350,0.02759017,243.26,243.25,7.09]
[1758265754855,6.64,243.25,243.23,0.0062957]
[1758265755045,6.64,243.25,243.23,4.61878776]
[1758265755747,6.64,243.25,243.23,0.0062957]
[1758265758041,6.64,243.25,243.23,4.61878776]
[1758265758247,0.02759017,243.26,243.23,4.61878776]
[1758265758552,6.66759017,243.26,243.23,4.61878776]
[1758265760044,0.02759017,243.26,243.24,11.70249206]
[1758265760245,0.02759017,243.26,243.25,11.70249206]
[1758265760550,0.02759017,243.26,243.25,7.09]
[1758265761851,0.02759017,243.26,243.23,0.0062957]
[1758265762248,0.02759017,243.26,243.23,7.0962957]
[1758265762649,0.02759017,243.26,243.23,0.0062957]
[1758265762847,0.02759017,243.26,243.23,7.0962957]
[1758265763551,0.02759017,243.26,243.23,0.0062957]
[1758265764448,0.02759017,243.26,243.23,7.0962957]
[1758265764654,0.02759017,243.26,243.23,0.0062957]
[1758265764857,0.02759017,243.26,243.23,7.0962957]
[1758265765056,0.02759017,243.26,243.24,7.09]
[1758265765553,0.02759017,243.26,243.23,6.87728953]
[1758265765754,0.02759017,243.26,243.24,7.09]
[1758265766455,0.02759017,243.26,243.23,6.87728953]
[1758265766850,0.02759017,243.26,243.24,7.09]
[1758265767055,0.02759017,243.26,243.23,6.87728953]
[1758265767757,0.02759017,243.26,243.24,7.09]
[1758265767952,0.02759017,243.26,243.23,6.87728953]
[1758265768157,0.02759017,243.26,243.25,6.83]
[1758265770858,0.02759017,243.26,243.25,13.70099383]
[1758265771057,0.02759017,243.26,243.25,6.83]
[1758265773463,0.02759017,243.26,243.25,117.4730885]
[1758265774266,6.47759017,243.31,243.25,110.55]
[1758265774463,6.47759017,243.31,243.3,3.46157471]
[1758265775262,7.32,243.35,243.28,4.61543295]
[1758265775565,7.32,243.35,243.33,3.46155899]
[1758265776262,6.55,243.34,243.33,3.46155899]
[1758265777071,6.55,243.34,243.31,4.61543295]
[1758265777465,6.55,243.34,243.3,4.61543295]
[1758265778265,6.55,243.34,243.31,11.44543295]
[1758265779762,8.7012069,243.39,243.32,11.44543295]
[1758265779968,8.7012069,243.39,243.35,3.46002592]
[1758265780163,6.55,243.38,243.35,3.46002592]
[1758265780469,2.1512069,243.39,243.35,3.48862748]
[1758265780666,6.55,243.38,243.35,3.48862748]
[1758265781662,2.1512069,243.39,243.35,3.48862748]
[1758265781866,6.55,243.38,243.35,3.48862748]
[1758265782372,6.55,243.4,243.36,3.46002592]
[1758265782670,6.55,243.39,243.36,3.46002592]
[1758265782965,8.8812069,243.41,243.37,3.46002592]
[1758265782966,6.55,243.4,243.37,3.46002592]
[1758265783162,6.55,243.4,243.38,3.46002592]
[1758265783363,6.55,243.4,243.37,3.46002592]
[1758265783566,6.73,243.41,243.38,3.46002592]
[1758265783761,6.73,243.41,243.38,10.29002592]
[1758265783968,6.73,243.41,243.35,4.64403451]
[1758265783969,6.73,243.41,243.39,7.16782009]
[1758265784169,6.73,243.41,243.4,3.70779417]
[1758265784768,6.73,243.41,243.4,7.16782009]
[1758265785560,6.73,243.41,243.4,10.53779417]
[1758265787365,6.73,243.41,243.4,13.98858912]
[1758265787770,6.73,243.41,243.4,10.53779417]
[1758265788270,6.55,243.48,243.4,10.53779417]
[1758265788466,6.55,243.48,243.41,7.15675499]
[1758265788666,6.55,243.48,243.42,3.70779417]
[1758265788970,6.55,243.5,243.43,3.70779417]
[1758265789171,6.55,243.5,243.44,3.70779417]
[1758265789369,6.55,243.54,243.45,10.53779417]
[1758265789561,8.7012069,243.54,243.46,3.70779417]
[1758265789765,8.7012069,243.54,243.47,3.70779417]
[1758265789966,8.7012069,243.54,243.48,3.70779417]
[1758265790268,2.1512069,243.54,243.49,3.70779417]
[1758265790465,2.1512069,243.54,243.5,3.70779417]
[1758265790662,6.55,243.53,243.51,3.70779417]
[1758265790862,6.55,243.53,243.52,3.70779417]
[1758265793366,103.6,243.61,243.52,3.70779417]
[1758265793367,2.1512069,243.6,243.52,10.53779417]
[1758265793568,6.55,243.61,243.53,3.70779417]
[1758265793776,2.1512069,243.6,243.54,3.70779417]
[1758265793969,2.1512069,243.6,243.55,3.70779417]
[1758265794168,2.1512069,243.6,243.56,3.70779417]
[1758265794370,6.55,243.59,243.57,3.70779417]
[1758265794571,6.55,243.59,243.58,3.70779417]
[1758265795276,8.7012069,243.59,243.58,3.70779417]
[1758265795473,2.1512069,243.59,243.58,3.64226957]
[1758265795776,8.7012069,243.59,243.58,3.64226957]
[1758265796267,2.1512069,243.59,243.55,0.02976882]
[1758265796475,6.48,243.58,243.56,3.64054886]
[1758265796668,6.48,243.58,243.57,3.64054886]
[1758265798678,2.1512069,243.62,243.57,3.64054886]
[1758265798876,2.1512069,243.62,243.58,3.64054886]
[1758265799077,2.1512069,243.62,243.59,3.64054886]
[1758265799272,6.73,243.61,243.55,0.02976882]
[1758265799478,2.1512069,243.62,243.56,3.63509661]
[1758265799680,6.73,243.61,243.57,3.63509661]
[1758265799872,2.1512069,243.62,243.58,3.63509661]
[1758265800180,2.1512069,243.62,243.59,3.63509661]
[1758265800378,6.73,243.61,243.55,0.02976882]
[1758265800673,6.77,243.64,243.57,6.99]
[1758265800869,6.77,243.64,243.58,3.63502374]
[1758265801072,6.77,243.64,243.6,6.99]
[1758265801376,6.77,243.64,243.61,10.62354025]
[1758265801578,8.8812069,243.66,243.62,3.63346229]
[1758265801777,8.8812069,243.66,243.55,2.1512069]
[1758265801778,6.73,243.66,243.55,2.1512069]
[1758265801975,49.72,243.68,243.59,2.1512069]
[1758265802175,2.1512069,243.72,243.62,0.02939317]
[1758265802376,6.73,243.68,243.63,3.63310865]
[1758265802580,6.73,243.65,243.62,0.02939317]
[1758265802780,6.73,243.65,243.63,3.63072864]
[1758265802981,6.73,243.65,243.64,3.63061181]
[1758265803373,2.1512069,243.66,243.62,0.02939317]
[1758265803571,6.73,243.65,243.62,0.02939317]
[1758265803778,2.1512069,243.66,243.62,0.02939317]
[1758265803976,110.96,243.73,243.62,0.02939317]
[1758265803977,6.73,243.65,243.62,0.02939317]
[1758265804178,8.8812069,243.69,243.63,3.62912363]
[1758265804375,6.73,243.68,243.64,3.62912363]
[1758265804588,6.73,243.68,243.62,0.02939317]
[1758265804784,2.1512069,243.65,243.62,0.02939317]
[1758265804988,6.73,243.64,243.63,3.62759011]
[1758265806996,2.1512069,243.7,243.63,3.62759011]
[1758265807197,6.73,243.72,243.64,3.62759011]
[1758265807398,6.73,243.69,243.62,0.02939317]
[1758265807696,6.73,243.69,243.63,3.62447655]
[1758265807898,6.73,243.69,243.64,3.62447655]
[1758265808195,6.73,243.69,243.62,0.02939317]
[1758265808395,6.73,243.66,243.63,3.62374043]
[1758265808594,6.73,243.66,243.64,3.62374043]
[1758265808788,2.1512069,243.72,243.62,0.02939317]
[1758265808997,2.1512069,243.68,243.63,3.62374043]
[1758265809294,6.73,243.67,243.64,3.62374043]
[1758265809498,2.1512069,243.68,243.62,0.02939317]
[1758265809695,2.1512069,243.68,243.63,3.62324755]
[1758265810000,2.1512069,243.68,243.64,3.62324755]
[1758265810299,6.73,243.67,243.62,0.02939317]
[1758265810500,2.1512069,243.68,243.63,3.62294768]
[1758265810696,6.73,243.67,243.64,3.62294768]
[1758265811001,2.1512069,243.72,243.62,0.02939317]
[1758265811201,2.1512069,243.68,243.63,3.62294768]
[1758265811500,6.73,243.67,243.64,3.62294768]
[1758265811700,8.8812069,243.68,243.62,0.02939317]
[1758265811903,2.1512069,243.68,243.63,3.62277095]
[1758265812200,6.73,243.67,243.64,3.62277095]
[1758265812400,8.8812069,243.68,243.62,0.02939317]
[1758265812600,6.73,243.67,243.63,3.62282742]
[1758265812900,6.73,243.67,243.64,3.62282742]
[1758265813100,2.1512069,243.69,243.63,6.99]
[1758265813295,6.73,243.68,243.64,3.62336828]
[1758265813491,6.73,243.68,243.65,3.62286078]
[1758265813688,110.96,243.73,243.63,6.99]
[1758265813689,2.1512069,243.71,243.63,6.99]
[1758265813895,8.8812069,243.71,243.64,3.62286078]
[1758265814094,8.8812069,243.71,243.63,6.99]
[1758265814095,6.73,243.71,243.65,3.62286078]
[1758265814393,6.73,243.71,243.66,3.6229344]
[1758265814598,6.73,243.71,243.63,6.99]
[1758265814798,6.73,243.71,243.64,3.62297325]
[1758265814998,6.73,243.71,243.65,3.62297325]
[1758265815194,2.1512069,243.72,243.66,3.62297325]
[1758265815390,8.8812069,243.72,243.63,6.99]
[1758265815595,8.8812069,243.72,243.64,3.62333158]
[1758265815900,8.8812069,243.72,243.65,3.62333158]
[1758265816097,8.8812069,243.72,243.66,3.62333158]
[1758265816301,2.1512069,243.72,243.67,3.62333158]
[1758265816502,8.8812069,243.72,243.63,6.99]
[1758265816696,8.8812069,243.72,243.64,3.6234117]
[1758265816898,8.8812069,243.72,243.65,3.6234117]
[1758265817098,6.73,243.72,243.66,3.6234117]
[1758265817299,117.69,243.73,243.67,3.6234117]
[1758265817498,117.69,243.73,243.65,0.02604764]
[1758265817698,14.21,243.73,243.66,3.62366293]
[1758265817901,14.21,243.73,243.67,3.62366293]
[1758265818203,14.21,243.73,243.65,7.01604764]
[1758265818404,14.21,243.73,243.66,3.62417234]
[1758265818599,6.73,243.71,243.67,3.62417234]
[1758265818806,2.1512069,243.72,243.65,0.02604764]
[1758265818807,2.1512069,243.69,243.65,0.02604764]
[1758265819002,6.73,243.68,243.65,0.02604764]
[1758265819405,105.5112069,243.69,243.65,0.02604764]
[1758265819601,6.73,243.68,243.65,0.02604764]
[1758265819803,8.10280009,243.66,243.65,0.02604764]
[1758265820197,1.37280009,243.66,243.65,3.65952208]
[1758265820402,6.73,243.67,243.65,3.65952208]
[1758265820595,6.73,243.67,243.66,3.63347444]
[1758265821198,6.73,243.67,243.66,3.63450782]
[1758265822699,0.42,243.67,243.65,0.02604764]
[1758265822909,1.37280009,243.68,243.65,0.02604764]
[1758265822910,6.73,243.66,243.65,0.02604764]
[1758265823103,1.37280009,243.68,243.65,3.66229175]
[1758265823104,6.73,243.67,243.65,3.66229175]
[1758265823305,6.73,243.67,243.66,3.63624411]
[1758265823507,103.36,243.69,243.66,3.63624411]
[1758265823705,110.09,243.69,243.67,3.63624411]
[1758265824010,6.73,243.69,243.65,0.02604764]
[1758265824311,103.32,243.7,243.66,3.63780863]
[1758265824504,103.32,243.7,243.67,3.63780863]
[1758265824704,6.73,243.69,243.68,3.63780863]
[1758265825611,103.32,243.7,243.68,3.63780863]
[1758265825813,103.32,243.7,243.69,3.63780863]
[1758265826212,110.05,243.7,243.69,3.63780863]
[1758265827607,103.32,243.7,243.69,3.63780863]
[1758265828013,103.32,243.7,243.69,10.62780863]
[1758265829417,6.73,243.75,243.69,10.62780863]
[1758265829712,6.73,243.75,243.71,6.63]
[1758265829904,6.73,243.75,243.72,3.63780863]
[1758265830111,6.73,243.75,243.73,3.63780863]
[1758265830303,103.3,243.76,243.74,3.63780863]
[1758265830503,110.08,243.76,243.75,3.63780863]
[1758265831312,103.3,243.76,243.75,3.63780863]
[1758265831815,110.08,243.76,243.75,3.63780863]
[1758265832913,103.3,243.76,243.75,3.63780863]
[1758265833217,7.83,243.77,243.75,3.63780863]
[1758265833515,7.83,243.77,243.76,3.63780863]
[1758265834418,14.61,243.77,243.76,3.63780863]
[1758265834814,15.03,243.77,243.76,3.63780863]
[1758265835411,15.03,243.77,243.71,0.03137487]
[1758265835613,6.78,243.72,243.71,0.03137487]
[1758265835808,110.02,243.72,243.71,0.03137487]
[1758265837430,110.02,243.72,243.65,3.43482594]
[1758265837431,110.44,243.72,243.65,3.43482594]
[1758265837721,6.78,243.66,243.65,3.43482594]
[1758265837913,110.0,243.66,243.65,3.43482594]
[1758265841614,110.42,243.66,243.65,0.00482594]
[1758265841818,110.42,243.66,243.63,0.02638646]
[1758265842017,8.15280009,243.64,243.53,10.06588523]
[1758265842311,8.15280009,243.64,243.53,6.63]
[1758265842312,1.37280009,243.6,243.53,6.63]
[1758265842512,103.2,243.59,243.53,6.63]
[1758265842922,103.2,243.59,243.54,1.37280009]
[1758265843316,103.22808938,243.59,243.55,6.63]
[1758265843921,103.22808938,243.59,243.54,1.37280009]
[1758265844423,103.22808938,243.59,243.5,6.63]
[1758265844620,103.22808938,243.59,243.54,1.37280009]
[1758265845022,103.22808938,243.59,243.55,6.63]
[1758265846622,103.22808938,243.59,243.54,1.37280009]
[1758265846822,103.22808938,243.59,243.55,6.63]
[1758265848619,110.00808938,243.59,243.55,6.63]
[1758265849630,110.00808938,243.59,243.56,1.37280009]
[1758265850122,110.00808938,243.59,243.55,6.63]
[1758265850327,110.00808938,243.59,243.55,8.00280009]
[1758265853026,103.22808938,243.59,243.57,1.37280009]
[1758265853333,6.98,243.62,243.58,6.63]
[1758265853530,6.98,243.62,243.61,8.00280009]
[1758265854729,6.98,243.62,243.61,1.37280009]
[1758265856227,6.98,243.62,243.61,8.02280009]
[1758265856933,6.57,243.69,243.62,6.65]
[1758265857130,6.57,243.69,243.68,1.37280009]
[1758265858431,6.48,243.74,243.66,1.40356826]
[1758265859830,6.48,243.74,243.66,0.03076817]
[1758265860229,6.48,243.72,243.66,0.03076817]
[1758265861832,6.48,243.72,243.66,1.40356826]
[1758265865026,1.37280009,243.68,243.66,0.03076817]
[1758265865236,6.48,243.67,243.66,0.03076817]
[1758265865728,6.9,243.67,243.66,0.00076817]
[1758265866236,6.48,243.67,243.66,0.00076817]
[1758265867835,6.9,243.67,243.66,0.00076817]
[1758265868036,6.48,243.67,243.66,0.00076817]
[1758265869037,109.54,243.67,243.66,0.00076817]
[1758265871441,6.48,243.67,243.66,0.00076817]
[1758265872037,6.48,243.67,243.57,6.7]
[1758265872243,6.48,243.59,243.51,1.37280009]
[1758265872940,6.48,243.59,243.5,6.7]
[1758265873246,6.48,243.59,243.53,1.37280009]
[1758265873537,0.0262602,243.57,243.53,1.37280009]
[1758265873745,0.0262602,243.57,243.54,6.7]
[1758265875146,0.0262602,243.57,243.56,6.7]
[1758265884060,6.5062602,243.57,243.48,8.84570227]
[1758265884363,6.5062602,243.57,243.48,6.7]
[1758265885160,6.5062602,243.57,243.48,8.84570227]
[1758265885661,0.0262602,243.57,243.52,6.7]
[1758265886058,0.0262602,243.57,243.51,2.14570227]
[1758265886257,0.0262602,243.57,243.52,6.7]
[1758265887157,0.0262602,243.57,243.51,2.14570227]
[1758265887358,0.0262602,243.57,243.52,6.7]
[1758265887862,0.0262602,243.57,243.51,2.14570227]
[1758265888062,0.0262602,243.57,243.52,6.7]
[1758265888560,0.0262602,243.57,243.51,2.14570227]
[1758265888766,0.0262602,243.57,243.52,7.07]
[1758265889463,0.0262602,243.57,243.51,2.14570227]
[1758265890166,0.0262602,243.57,243.52,7.07]
[1758265890562,0.0262602,243.57,243.51,2.14570227]
[1758265892364,0.0262602,243.57,243.52,7.07]
[1758265892567,0.0262602,243.57,243.51,2.14570227]
[1758265892766,0.0262602,243.57,243.52,7.07]
[1758265893169,0.0262602,243.57,243.51,2.14570227]
[1758265893468,0.0262602,243.57,243.52,7.07]
[1758265893967,0.0262602,243.57,243.51,2.14570227]
[1758265894162,0.0262602,243.57,243.52,7.05]
[1758265894368,0.0262602,243.57,243.51,2.14570227]
[1758265896072,0.0262602,243.57,243.54,2.14570227]
[1758265897164,0.0262602,243.57,243.55,7.07]
[1758265897866,0.0262602,243.57,243.54,2.14570227]
[1758265898071,0.0262602,243.57,243.55,7.07]
[1758265898571,0.0262602,243.57,243.54,2.14570227]
[1758265898971,0.0262602,243.57,243.55,7.07]
[1758265899172,0.0262602,243.57,243.56,7.07]
[1758265901574,0.0262602,243.57,243.56,9.21570227]
[1758265901773,0.0262602,243.57,243.56,9.63570227]
[1758265901976,7.08,243.7,243.57,7.07]
[1758265902275,7.08,243.7,243.61,7.07]
[1758265902873,8.55,243.69,243.61,7.07]
[1758265903073,8.55,243.69,243.61,10.51672294]
[1758265903374,8.55,243.69,243.63,0.02597582]
[1758265905172,8.55,243.69,243.63,10.54269876]
[1758265905372,8.55,243.69,243.63,7.09597582]